bitfinex/quotes_SOLUSD_20251216
["timestamp","ask_amount","ask_price","bid_price","bid_amount"]
[1765871802829,0.1,125.99,125.98,17.32776789]
[1765871805934,0.1,125.99,125.98,16.63776789]
[1765871806133,0.1,125.99,125.98,17.32776789]
[1765871809662,0.1,125.99,125.98,26.13771281]
[1765871812249,0.1,125.99,125.98,7.93776789]
[1765871812556,0.1,125.99,125.98,16.63776789]
[1765871813365,0.1,125.99,125.98,17.32776789]
[1765871814371,0.1,125.99,125.98,26.13771281]
[1765871818759,3.72635372,125.99,125.98,16.63776789]
[1765871819156,3.00635372,125.99,125.98,16.63776789]
[1765871820357,0.1,125.99,125.98,16.63776789]
[1765871820670,3.00635372,125.99,125.98,7.93776789]
[1765871820877,3.00635372,125.99,125.98,16.63776789]
[1765871821373,0.1,125.99,125.98,17.32776789]
[1765871821576,0.1,125.99,125.98,16.63776789]
[1765871822676,3.00635372,125.99,125.98,16.63776789]
[1765871823373,3.00635372,125.99,125.97,7.9381062]
[1765871823374,3.71635372,125.99,125.97,7.9381062]
[1765871823555,3.61635372,125.98,125.97,16.6381062]
[1765871824974,16.66344492,125.98,125.94,8.80994492]
[1765871825168,2.90635372,125.95,125.93,7.94091955]
[1765871825476,13.7570912,125.97,125.94,8.7]
[1765871825677,0.71,125.96,125.94,8.7]
[1765871826458,2.90635372,125.95,125.94,8.7]
[1765871826979,3.61635372,125.95,125.94,16.64028902]
[1765871828782,3.61635372,125.95,125.94,8.7]
[1765871828991,24.60310351,125.95,125.94,8.7]
[1765871829281,27.50945723,125.95,125.91,7.94184139]
[1765871829482,27.50945723,125.95,125.9,8.80994492]
[1765871829483,2.90635372,125.92,125.9,7.94269326]
[1765871829683,2.90635372,125.91,125.9,7.94269326]
[1765871829986,2.90635372,125.91,125.9,16.64269326]
[1765871831698,3.61635372,125.91,125.9,16.64269326]
[1765871831893,3.61635372,125.91,125.9,8.7]
[1765871832396,2.90635372,125.91,125.9,8.7]
[1765871833170,3.61635372,125.91,125.9,8.7]
[1765871833791,11.55856547,125.91,125.87,16.75464977]
[1765871833993,2.90635372,125.88,125.87,8.65470485]
[1765871834208,2.90635372,125.88,125.87,17.35470485]
[1765871835193,2.90635372,125.88,125.87,16.64470485]
[1765871835413,3.61635372,125.88,125.87,16.64470485]
[1765871836076,2.90635372,125.88,125.87,16.64470485]
[1765871837401,2.91302739,125.88,125.87,16.64470485]
[1765871837787,3.62302739,125.88,125.87,8.7]
[1765871838497,11.56710111,125.88,125.87,8.7]
[1765871839079,14.4801285,125.88,125.87,8.7]
[1765871839280,14.4801285,125.88,125.85,8.9]
[1765871839487,2.91302739,125.86,125.85,8.9]
[1765871839984,3.62302739,125.86,125.85,8.9]
[1765871842405,2.91302739,125.86,125.85,8.9]
[1765871842607,15.96011859,125.86,125.85,9.61]
[1765871842986,15.96011859,125.86,125.85,8.9]
[1765871844611,28.55573951,125.91,125.85,17.55596742]
[1765871844791,2.91302739,125.87,125.85,17.55596742]
[1765871846503,3.62302739,125.86,125.85,0.2]
[1765871846682,24.61545467,125.86,125.85,0.2]
[1765871850712,16.67011859,125.86,125.85,0.2]
[1765871852212,15.96011859,125.86,125.85,8.14596742]
[1765871853310,16.65011859,125.86,125.85,8.14596742]
[1765871854114,15.96011859,125.86,125.85,8.14596742]
[1765871855919,16.65011859,125.86,125.85,8.14596742]
[1765871856615,7.94365557,125.89,125.85,8.14596742]
[1765871856816,2.91302739,125.88,125.86,8.72]
[1765871857023,3.60302739,125.88,125.86,8.72]
[1765871857395,5.24178465,125.88,125.86,8.72]
[1765871857794,5.24178465,125.88,125.86,16.66484065]
[1765871858112,4.55178465,125.88,125.86,36.52818086]
[1765871858411,4.55178465,125.88,125.86,37.20818086]
[1765871860316,4.55178465,125.88,125.86,17.34484065]
[1765871860813,4.55178465,125.88,125.86,37.20818086]
[1765871861321,5.24178465,125.87,125.85,0.2]
[1765871861502,4.55178465,125.86,125.85,16.86596742]
[1765871861703,0.69,125.87,125.86,7.94533608]
[1765871861704,4.55178465,125.87,125.86,7.94533608]
[1765871863496,4.55178465,125.87,125.86,8.62533608]
[1765871863698,4.55178465,125.88,125.86,8.62533608]
[1765871865817,4.55178465,125.87,125.86,8.62533608]
[1765871867125,4.55178465,125.88,125.86,28.48867629]
[1765871867323,4.55178465,125.88,125.87,9.4]
[1765871867711,4.55178465,125.88,125.87,17.34470485]
[1765871869325,13.7370912,125.9,125.87,17.34470485]
[1765871869507,4.55178465,125.89,125.88,0.68]
[1765871869703,4.55178465,125.89,125.88,8.62407372]
[1765871870722,4.55178465,125.89,125.88,7.94407372]
[1765871871121,4.55178465,125.89,125.88,8.62407372]
[1765871872130,4.55178465,125.89,125.88,7.94407372]
[1765871873305,4.55178465,125.89,125.88,8.62407372]
[1765871873512,4.55178465,125.89,125.88,7.94407372]
[1765871877420,4.55178465,125.89,125.88,8.62407372]
[1765871877621,4.55178465,125.89,125.88,7.94407372]
[1765871879325,4.55178465,125.89,125.88,8.62407372]
[1765871880227,17.59887585,125.9,125.88,8.62407372]
[1765871880442,4.55178465,125.92,125.89,9.4]
[1765871880839,4.55178465,125.92,125.9,0.68]
[1765871881025,4.55178465,125.92,125.91,8.7]
[1765871881526,13.7370912,125.94,125.91,17.32218092]
[1765871881734,4.55178465,125.92,125.91,17.32218092]
[1765871881912,4.55178465,125.93,125.91,17.32218092]
[1765871882815,4.55178465,125.92,125.91,16.64218092]
[1765871883134,4.55178465,125.92,125.9,19.85662267]
[1765871883135,18.28887585,125.92,125.89,8.7]
[1765871883441,17.59887585,125.9,125.89,8.7]
[1765871883622,13.0470912,125.89,125.86,7.944961]
[1765871883827,4.55178465,125.87,125.86,8.7]
[1765871884221,5.24178465,125.87,125.86,8.7]
[1765871884828,5.24178465,125.87,125.85,8.14564607]
[1765871885022,13.0470912,125.87,125.86,8.7]
[1765871885223,13.0470912,125.87,125.85,0.2]
[1765871885423,7.94533608,125.86,125.85,0.2]
[1765871885630,8.63533608,125.86,125.85,0.2]
[1765871886129,13.18712073,125.86,125.85,0.2]
[1765871886337,5.24178465,125.86,125.85,0.2]
[1765871887137,4.55178465,125.86,125.85,0.2]
[1765871887546,5.24178465,125.86,125.85,0.2]
[1765871889337,17.59887585,125.86,125.85,8.14596742]
[1765871889820,17.59887585,125.86,125.85,0.2]
[1765871890016,17.59887585,125.86,125.85,8.14596742]
[1765871890217,13.7370912,125.88,125.85,16.86596742]
[1765871890418,4.55178465,125.86,125.85,16.86596742]
[1765871890938,4.55178465,125.86,125.85,17.54596742]
[1765871892729,13.18712073,125.86,125.85,0.2]
[1765871894733,5.24178465,125.86,125.85,0.2]
[1765871895341,13.18712073,125.86,125.85,0.2]
[1765871900944,7.94533608,125.86,125.85,0.2]
[1765871901132,12.49712073,125.86,125.85,0.2]
[1765871901857,13.18712073,125.86,125.85,0.2]
[1765871904433,12.49712073,125.86,125.85,0.2]
[1765871904627,4.55178465,125.86,125.85,0.2]
[1765871905054,4.55449234,125.86,125.85,0.2]
[1765871906052,12.49982842,125.86,125.85,0.2]
[1765871906451,13.18982842,125.86,125.85,0.2]
[1765871907757,12.49982842,125.86,125.85,0.2]
[1765871907962,13.18982842,125.86,125.85,0.2]
[1765871908668,13.18982842,125.86,125.85,0.88]
[1765871908669,4.55449234,125.86,125.85,0.88]
[1765871909041,4.55449234,125.86,125.85,0.2]
[1765871909258,12.49982842,125.86,125.85,0.2]
[1765871909434,7.94533608,125.86,125.85,0.2]
[1765871909636,12.49982842,125.86,125.85,0.2]
[1765871910134,4.55449234,125.86,125.85,0.2]
[1765871910341,17.60158354,125.86,125.85,0.88]
[1765871910736,17.60158354,125.86,125.85,0.2]
[1765871910737,18.29158354,125.86,125.85,0.2]
[1765871911164,26.23691962,125.86,125.85,0.2]
[1765871913366,30.39147972,125.86,125.85,0.2]
[1765871913538,4.55449234,125.81,125.8,9.44]
[1765871914771,4.55449234,125.81,125.8,17.38912559]
[1765871915854,4.55449234,125.82,125.8,17.38912559]
[1765871916051,4.55449234,125.82,125.81,0.72]
[1765871916272,4.55449234,125.83,125.81,0.72]
[1765871916656,4.55449234,125.83,125.81,8.66835776]
[1765871916858,17.60158354,125.83,125.82,0.72]
[1765871917957,17.60158354,125.83,125.81,0.72]
[1765871918156,4.55449234,125.82,125.81,0.72]
[1765871919372,2.9160569,125.82,125.81,0.72]
[1765871920374,2.9160569,125.82,125.8,8.72]
[1765871920676,2.9160569,125.81,125.8,8.72]
[1765871921173,2.9160569,125.81,125.8,9.44]
[1765871921472,2.9160569,125.82,125.8,17.38912559]
[1765871923377,2.9160569,125.82,125.8,16.66912559]
[1765871923578,2.9160569,125.82,125.8,17.38912559]
[1765871924275,2.9160569,125.82,125.8,16.66912559]
[1765871924584,2.9160569,125.82,125.81,0.72]
[1765871925377,15.9631481,125.83,125.81,8.66849376]
[1765871925754,15.9631481,125.83,125.82,0.72]
[1765871926780,15.9631481,125.83,125.82,8.66786202]
[1765871927082,2.9160569,125.84,125.82,8.66786202]
[1765871927282,15.9631481,125.84,125.83,9.44]
[1765871928260,15.9631481,125.84,125.83,17.38723039]
[1765871928580,15.9631481,125.84,125.83,8.72]
[1765871929172,15.9631481,125.84,125.83,17.38723039]
[1765871929773,2.9160569,125.84,125.83,17.38723039]
[1765871929978,7.94486838,125.87,125.83,17.38723039]
[1765871929979,2.9160569,125.85,125.83,17.38723039]
[1765871930590,2.9160569,125.84,125.83,17.38723039]
[1765871931488,2.9160569,125.85,125.83,17.38723039]
[1765871931699,2.9160569,125.85,125.84,0.72]
[1765871932075,2.9160569,125.85,125.83,9.44]
[1765871932272,3.6260569,125.84,125.83,8.72]
[1765871932674,0.71,125.84,125.83,8.72]
[1765871932879,3.6260569,125.84,125.83,8.72]
[1765871933279,2.9160569,125.84,125.83,9.44]
[1765871933969,2.9160569,125.84,125.83,8.72]
[1765871934494,2.9160569,125.84,125.83,9.44]
[1765871936692,8.65573549,125.86,125.83,9.44]
[1765871936868,2.9160569,125.84,125.83,9.44]
[1765871940566,12.09849511,125.88,125.83,17.38723039]
[1765871940776,2.9160569,125.84,125.8,8.66874152]
[1765871940988,2.9160569,125.81,125.8,8.66912559]
[1765871941693,2.9160569,125.81,125.8,7.94912559]
[1765871941894,2.9160569,125.81,125.79,16.66962543]
[1765871942101,2.9160569,125.8,125.79,17.38962543]
[1765871943394,2.9160569,125.81,125.79,17.38962543]
[1765871943595,2.9160569,125.81,125.8,0.65]
[1765871944103,2.9160569,125.81,125.8,8.59912559]
[1765871945201,2.9160569,125.81,125.8,7.94912559]
[1765871945901,3.5760569,125.81,125.79,16.66942359]
[1765871946205,0.66,125.81,125.79,16.66942359]
[1765871946503,2.9160569,125.8,125.79,16.66942359]
[1765871946802,2.9160569,125.8,125.79,17.31942359]
[1765871947499,2.9160569,125.8,125.79,16.66942359]
[1765871949099,2.9160569,125.8,125.79,17.31942359]
[1765871952284,2.9160569,125.8,125.79,9.37]
[1765871952483,8.60800231,125.82,125.79,9.37]
[1765871952676,2.9160569,125.8,125.79,9.37]
[1765871958610,2.9160569,125.8,125.79,8.72]
[1765871958810,16.6231481,125.8,125.78,8.72]
[1765871959015,2.9160569,125.79,125.78,8.72]
[1765871959703,11.52581443,125.79,125.78,8.72]
[1765871960288,11.52581443,125.79,125.76,0.65]
[1765871960593,7.94975753,125.79,125.77,8.72]
[1765871961095,8.60975753,125.79,125.77,8.72]
[1765871961706,2.9160569,125.78,125.77,8.72]
[1765871965212,2.9160569,125.78,125.77,17.3210217]
[1765871965410,2.9160569,125.79,125.77,17.3210217]
[1765871965605,2.9160569,125.79,125.78,0.65]
[1765871966104,15.9631481,125.8,125.78,0.65]
[1765871967220,2.9160569,125.79,125.78,0.65]
[1765871967423,3.5760569,125.79,125.77,7.9510217]
[1765871967600,0.66,125.79,125.78,8.72]
[1765871968497,21.65653015,125.8,125.78,8.72]
[1765871968704,2.9160569,125.79,125.78,8.72]
[1765871969831,3.5760569,125.79,125.78,8.72]
[1765871970009,11.52581443,125.79,125.78,8.72]
[1765871970823,11.52795751,125.79,125.78,8.72]
[1765871971194,11.52795751,125.79,125.76,8.60162277]
[1765871971424,11.52795751,125.79,125.76,17.32162277]
[1765871972924,2.91819998,125.77,125.76,17.32162277]
[1765871974751,2.91819998,125.77,125.76,9.37]
[1765871975632,2.91819998,125.77,125.76,17.32165394]
[1765871976628,13.7670912,125.79,125.76,17.32165394]
[1765871976833,2.91819998,125.78,125.76,17.32165394]
[1765871977039,2.91819998,125.77,125.76,17.32165394]
[1765871977726,13.0470912,125.8,125.77,7.9510217]
[1765871977913,2.91819998,125.79,125.77,8.6710217]
[1765871978238,15.96529118,125.79,125.78,9.44]
[1765871978842,13.0470912,125.79,125.78,9.44]
[1765871979216,2.91819998,125.8,125.78,9.44]
[1765871980733,3.59819998,125.8,125.78,9.44]
[1765871980946,3.59819998,125.8,125.78,17.39028177]
[1765871981518,5.23783495,125.8,125.78,17.39028177]
[1765871981832,4.55783495,125.8,125.78,17.39028177]
[1765871982833,5.23783495,125.79,125.78,8.72]
[1765871983013,18.28492615,125.79,125.76,8.72]
[1765871983218,4.55783495,125.77,125.76,8.72]
[1765871983613,5.23783495,125.77,125.76,8.72]
[1765871985241,5.23783495,125.77,125.75,8.72]
[1765871985426,4.55783495,125.76,125.75,8.72]
[1765871985931,4.55783495,125.77,125.75,17.39206841]
[1765871986112,4.55783495,125.77,125.75,16.67206841]
[1765871986313,5.23783495,125.76,125.73,0.2]
[1765871986545,4.55783495,125.76,125.73,25.68344602]
[1765871987033,4.55783495,125.76,125.74,0.72]
[1765871987238,4.55783495,125.76,125.75,8.72]
[1765871987422,0.68,125.78,125.75,8.72]
[1765871987629,4.55783495,125.77,125.76,0.72]
[1765871988436,4.55783495,125.77,125.73,0.2]
[1765871988437,5.23783495,125.77,125.73,0.2]
[1765871988621,0.68,125.77,125.75,8.72]
[1765871989023,13.0470912,125.78,125.76,0.72]
[1765871989737,17.60492615,125.78,125.76,0.72]
[1765871990447,18.28492615,125.78,125.75,17.39201935]
[1765871990943,17.60492615,125.78,125.76,0.72]
[1765871991145,4.55783495,125.77,125.76,8.67149167]
[1765871994547,4.55783495,125.77,125.75,16.67202108]
[1765871994742,4.55783495,125.77,125.75,17.39202108]
[1765871995541,4.55783495,125.76,125.75,9.44]
[1765871997334,4.55783495,125.76,125.74,69.85263579]
[1765871997537,4.55783495,125.76,125.73,0.2]
[1765871997538,13.0470912,125.74,125.73,0.2]
[1765871997848,17.60492615,125.74,125.73,0.2]
[1765871998424,18.28492615,125.74,125.73,0.2]
[1765871998928,5.23783495,125.74,125.73,0.2]
[1765871999728,4.55783495,125.74,125.73,0.2]
[1765872000336,4.55783495,125.74,125.73,0.92]
[1765872000572,4.55783495,125.74,125.73,0.2]
[1765872000751,4.55783495,125.74,125.73,0.92]
[1765872001348,4.55783495,125.74,125.73,8.15347841]
[1765872002346,7.95230273,125.75,125.73,0.2]
[1765872002552,5.25783495,125.74,125.73,0.2]
[1765872002733,5.25783495,125.74,125.73,8.15355126]
[1765872002734,4.55783495,125.74,125.73,8.15355126]
[1765872003134,5.25783495,125.74,125.73,0.2]
[1765872003846,26.25784487,125.74,125.73,0.2]
[1765872004326,18.30492615,125.74,125.73,0.2]
[1765872004533,13.0470912,125.74,125.73,0.2]
[1765872004745,17.60492615,125.74,125.73,0.2]
[1765872004939,18.30492615,125.74,125.73,0.2]
[1765872006052,26.25784487,125.74,125.73,0.2]
[1765872006242,18.30492615,125.74,125.73,0.2]
[1765872006944,17.60492615,125.74,125.73,0.2]
[1765872007261,4.55783495,125.74,125.73,8.82355126]
[1765872007455,13.0470912,125.76,125.73,8.82355126]
[1765872007626,4.55783495,125.76,125.74,9.39]
[1765872008126,4.55783495,125.77,125.75,0.67]
[1765872008528,28.75292383,125.81,125.76,8.80994492]
[1765872008734,23.89962158,125.81,125.78,8.80994492]
[1765872008953,4.55783495,125.81,125.79,0.67]
[1765872009264,0.7,125.81,125.8,8.72]
[1765872009432,13.0470912,125.8,125.78,7.95020205]
[1765872009637,13.0470912,125.8,125.76,28.68817858]
[1765872009638,13.7470912,125.8,125.79,8.72]
[1765872010154,13.7470912,125.8,125.78,8.72]
[1765872010355,17.60492615,125.8,125.79,7.94975753]
[1765872010549,0.7,125.82,125.79,16.66975753]
[1765872010764,4.55783495,125.8,125.79,16.66975753]
[1765872010935,4.55783495,125.81,125.79,9.39]
[1765872011258,5.25783495,125.8,125.79,8.72]
[1765872011732,22.8627611,125.8,125.73,0.2]
[1765872011931,4.55783495,125.74,125.73,0.2]
[1765872012341,13.7470912,125.77,125.73,8.82355126]
[1765872012546,4.55783495,125.76,125.74,8.72]
[1765872012841,4.55783495,125.82,125.76,7.95165394]
[1765872012842,17.60492615,125.79,125.76,7.95165394]
[1765872013039,4.55783495,125.81,125.77,8.72]
[1765872013252,4.55783495,125.81,125.77,9.39]
[1765872013446,4.55783495,125.8,125.78,0.67]
[1765872013648,4.55783495,125.81,125.78,0.67]
[1765872013850,4.55783495,125.82,125.78,9.47994492]
[1765872014053,9.70994492,125.83,125.79,8.80994492]
[1765872014251,4.55783495,125.84,125.8,8.72]
[1765872014450,4.55783495,125.85,125.81,8.80994492]
[1765872014640,17.60492615,125.86,125.81,9.47994492]
[1765872014974,4.55783495,125.86,125.83,7.94723039]
[1765872015149,4.55783495,125.86,125.84,8.72]
[1765872015467,5.25783495,125.87,125.84,8.72]
[1765872015847,4.55783495,125.86,125.84,8.72]
[1765872016451,5.25783495,125.85,125.82,7.94768187]
[1765872016760,5.25783495,125.85,125.81,8.72]
[1765872016761,4.55783495,125.83,125.81,8.72]
[1765872016950,4.55783495,125.82,125.81,8.72]
[1765872017154,0.7,125.82,125.8,7.94910681]
[1765872017352,4.55783495,125.81,125.8,7.94910681]
[1765872017555,4.55783495,125.81,125.79,16.66954488]
[1765872017869,4.55783495,125.8,125.79,8.72]
[1765872018668,4.55783495,125.8,125.78,7.95010946]
[1765872018975,4.55783495,125.79,125.78,7.95010946]
[1765872020585,4.55783495,125.79,125.78,8.62010946]
[1765872020790,4.55783495,125.79,125.78,7.95010946]
[1765872021689,4.55783495,125.8,125.78,7.95010946]
[1765872023129,13.0470912,125.81,125.78,7.95010946]
[1765872023390,17.60492615,125.81,125.79,8.6193395]
[1765872024089,17.60492615,125.81,125.8,8.72]
[1765872025093,13.0470912,125.81,125.8,8.72]
[1765872025304,4.55783495,125.82,125.8,17.33912559]
[1765872026283,5.25783495,125.82,125.8,16.66912559]
[1765872026461,18.30492615,125.82,125.8,16.66912559]
[1765872026663,4.55783495,125.81,125.8,8.72]
[1765872028412,4.55783495,125.81,125.8,16.66912559]
[1765872028578,13.7470912,125.82,125.8,16.66912559]
[1765872028779,4.55783495,125.81,125.8,16.66912559]
[1765872030208,18.30492615,125.82,125.8,16.66912559]
[1765872030411,4.55783495,125.82,125.81,0.67]
[1765872030596,5.25783495,125.82,125.79,8.61943962]
[1765872030789,5.25783495,125.82,125.8,8.72]
[1765872030989,4.55783495,125.81,125.8,8.72]
[1765872032112,5.25783495,125.81,125.8,8.72]
[1765872032312,13.0470912,125.78,125.73,0.2]
[1765872032477,17.60492615,125.74,125.73,0.2]
[1765872032789,4.55783495,125.74,125.73,0.2]
[1765872033113,13.97783495,125.74,125.73,0.2]
[1765872033504,5.25783495,125.74,125.73,0.2]
[1765872034305,13.21075367,125.74,125.73,0.2]
[1765872035912,13.21075367,125.74,125.72,0.2]
[1765872035913,41.81305047,125.74,125.72,0.2]
[1765872036118,13.0470912,125.7,125.63,8.82958306]
[1765872036280,4.55783495,125.65,125.63,9.59]
[1765872036483,17.60492615,125.7,125.63,9.59]
[1765872036484,4.55783495,125.66,125.64,7.95913634]
[1765872036882,4.55783495,125.65,125.64,8.62913634]
[1765872037484,12.72545304,125.65,125.64,8.62913634]
[1765872037808,12.72558007,125.65,125.64,8.62913634]
[1765872038187,12.72558007,125.65,125.63,8.1596434]
[1765872038389,12.72558007,125.65,125.63,8.8296434]
[1765872038588,12.72558007,125.65,125.63,28.05934888]
[1765872038895,12.72558007,125.65,125.64,0.67]
[1765872040110,12.72558007,125.66,125.64,0.67]
[1765872040311,13.0470912,125.66,125.63,8.1596434]
[1765872040486,0.71,125.65,125.63,8.1596434]
[1765872040808,13.0470912,125.66,125.63,8.8496434]
[1765872041110,13.0470912,125.66,125.64,0.69]
[1765872041289,25.77267127,125.66,125.64,0.69]
[1765872042192,12.72558007,125.65,125.63,8.1596434]
[1765872042387,12.72558007,125.64,125.63,0.2]
[1765872042606,34.44191991,125.64,125.63,0.2]
[1765872042804,30.89477363,125.64,125.63,0.2]
[1765872043195,43.6203537,125.64,125.63,0.2]
[1765872043400,33.84506814,125.64,125.63,0.2]
[1765872044813,21.59502849,125.64,125.63,0.2]
[1765872045192,19.89234811,125.68,125.63,8.84988219]
[1765872045193,17.24793729,125.65,125.63,8.84988219]
[1765872045393,7.83793729,125.65,125.63,8.84988219]
[1765872045597,20.88502849,125.66,125.64,0.69]
[1765872045797,7.83793729,125.66,125.64,0.69]
[1765872046409,7.83793729,125.67,125.64,0.69]
[1765872046788,8.72,125.69,125.64,28.54694518]
[1765872046989,7.83793729,125.7,125.65,25.36788221]
[1765872047188,7.83793729,125.71,125.67,8.80994492]
[1765872047389,7.83793729,125.71,125.68,8.72]
[1765872047687,7.83793729,125.73,125.68,17.24793729]
[1765872047889,21.59502849,125.74,125.7,8.80994492]
[1765872048198,7.83793729,125.74,125.71,8.72]
[1765872048520,7.83793729,125.74,125.71,9.41]
[1765872048715,13.0470912,125.73,125.71,17.3642113]
[1765872048899,7.83793729,125.74,125.72,0.69]
[1765872049216,13.0470912,125.73,125.71,17.3642113]
[1765872049916,20.88502849,125.73,125.71,9.41]
[1765872050502,7.83793729,125.72,125.71,8.72]
[1765872050993,13.0470912,125.73,125.72,0.69]
[1765872052192,13.0470912,125.73,125.7,7.95517629]
[1765872052193,21.59502849,125.73,125.7,7.95517629]
[1765872052389,21.59502849,125.73,125.71,16.67466386]
[1765872052390,20.88502849,125.73,125.71,16.67466386]
[1765872052591,13.0470912,125.73,125.71,16.67466386]
[1765872052814,13.0470912,125.73,125.71,17.36466386]
[1765872053227,13.0470912,125.73,125.72,0.69]
[1765872054396,12.1051931,125.77,125.72,0.69]
[1765872054621,7.83793729,125.76,125.72,0.69]
[1765872054929,7.83793729,125.75,125.72,0.69]
[1765872055127,0.71,125.8,125.73,8.80994492]
[1765872055303,7.83793729,125.79,125.74,8.72]
[1765872055508,7.83793729,125.79,125.75,0.69]
[1765872055903,8.54793729,125.79,125.75,0.69]
[1765872056102,7.83793729,125.78,125.75,0.69]
[1765872057102,8.54793729,125.79,125.76,7.95165394]
[1765872057301,13.0470912,125.8,125.76,7.95165394]
[1765872057522,7.83793729,125.79,125.76,8.64165394]
[1765872057719,13.0470912,125.79,125.77,9.41]
[1765872058210,7.83793729,125.81,125.77,9.41]
[1765872058405,8.54793729,125.81,125.77,8.72]
[1765872058612,7.83793729,125.81,125.78,0.69]
[1765872058923,7.83793729,125.82,125.78,0.69]
[1765872059101,20.88502849,125.82,125.79,27.82415136]
[1765872059505,20.88502849,125.82,125.79,8.63975753]
[1765872059700,7.83793729,125.81,125.78,7.95015225]
[1765872059938,7.83793729,125.8,125.79,8.72]
[1765872061227,20.88502849,125.82,125.8,7.94912559]
[1765872061529,7.83793729,125.81,125.8,7.94912559]
[1765872062012,8.54793729,125.81,125.79,16.6695116]
[1765872062214,7.83793729,125.8,125.79,16.6695116]
[1765872062925,0.71,125.81,125.79,16.6695116]
[1765872063142,7.83793729,125.8,125.79,16.6695116]
[1765872063601,13.0470912,125.82,125.79,16.6695116]
[1765872063933,20.88502849,125.82,125.8,0.71]
[1765872064908,13.0470912,125.84,125.8,0.71]
[1765872065120,7.83793729,125.85,125.81,8.80994492]
[1765872065438,7.83793729,125.83,125.82,8.72]
[1765872065628,20.88502849,125.83,125.8,16.66882363]
[1765872065803,7.83793729,125.81,125.8,17.37912559]
[1765872066121,13.0470912,125.83,125.81,0.71]
[1765872066517,7.83793729,125.82,125.79,0.71]
[1765872066816,7.83793729,125.81,125.79,8.72]
[1765872067320,7.83793729,125.81,125.79,9.43]
[1765872067625,7.83793729,125.82,125.8,0.71]
[1765872067829,20.88502849,125.83,125.8,0.71]
[1765872069137,7.83793729,125.83,125.8,0.71]
[1765872069509,7.83793729,125.83,125.8,8.65871274]
[1765872070124,7.83793729,125.81,125.79,8.72]
[1765872070506,7.83793729,125.81,125.79,9.43]
[1765872070916,7.83793729,125.82,125.8,7.94907618]
[1765872071947,7.83793729,125.83,125.81,0.71]
[1765872072644,8.50793729,125.82,125.75,7.83793729]
[1765872072802,7.83793729,125.78,125.76,8.72]
[1765872073007,7.83793729,125.77,125.76,8.72]
[1765872073206,7.83793729,125.77,125.74,8.6628044]
[1765872073417,7.83793729,125.75,125.72,8.66390977]
[1765872073616,7.83793729,125.74,125.73,8.72]
[1765872073827,7.83793729,125.74,125.7,0.71]
[1765872074148,7.83793729,125.71,125.7,8.72]
[1765872074546,0.67,125.73,125.7,9.43]
[1765872074547,7.83793729,125.72,125.7,9.43]
[1765872074842,7.83793729,125.72,125.7,17.38521178]
[1765872075038,20.88502849,125.75,125.72,8.80994492]
[1765872075228,13.0470912,125.75,125.72,8.80994492]
[1765872075408,13.0470912,125.75,125.73,9.43]
[1765872075703,13.0470912,125.75,125.73,17.38341792]
[1765872076338,20.88502849,125.75,125.73,17.38341792]
[1765872076633,28.83748736,125.75,125.73,8.72]
[1765872076830,20.88502849,125.75,125.73,8.72]
[1765872077036,7.83793729,125.74,125.73,8.72]
[1765872078243,16.46085601,125.74,125.71,8.72]
[1765872078546,7.83793729,125.72,125.71,8.72]
[1765872079039,8.50793729,125.72,125.71,8.72]
[1765872079231,7.83793729,125.72,125.69,9.43]
[1765872079645,7.83793729,125.72,125.7,8.66508817]
[1765872079855,7.83793729,125.73,125.7,8.66508817]
[1765872080032,7.83793729,125.73,125.71,0.71]
[1765872080236,20.88502849,125.73,125.72,8.72]
[1765872080655,8.72,125.78,125.72,17.52994492]
[1765872080950,13.0470912,125.75,125.73,0.71]
[1765872081147,20.88502849,125.75,125.72,8.72]
[1765872081357,7.83793729,125.74,125.72,9.43]
[1765872081651,20.88502849,125.75,125.73,8.66355126]
[1765872084344,13.0470912,125.75,125.73,8.66355126]
[1765872084545,20.88502849,125.75,125.73,8.66355126]
[1765872085038,13.7170912,125.77,125.74,0.71]
[1765872085230,7.83793729,125.76,125.74,0.71]
[1765872085434,7.83793729,125.76,125.73,8.66355126]
[1765872085773,7.83793729,125.76,125.74,0.71]
[1765872086063,13.0470912,125.78,125.75,8.72]